bitfinex/quotes_BTCUSD_20251208
["timestamp","ask_amount","ask_price","bid_price","bid_amount"]
[1765199931975,0.21993089,91768.0,91767.0,0.00248696]
[1765199932367,0.27971382,91768.0,91767.0,0.00248696]
[1765199934374,0.28070382,91768.0,91767.0,0.00248696]
[1765199934756,0.30289981,91768.0,91767.0,0.00248696]
[1765199934912,0.28070382,91768.0,91767.0,0.00248696]
[1765199935111,0.30289981,91768.0,91767.0,0.00248696]
[1765199935321,0.28070382,91768.0,91767.0,0.00248696]
[1765199936197,0.30289981,91768.0,91767.0,0.00248696]
[1765199937766,0.28070382,91768.0,91767.0,0.00248696]
[1765199937971,0.27971382,91768.0,91767.0,0.00248696]
[1765199939522,0.30190981,91768.0,91767.0,0.00248696]
[1765199940059,0.27971382,91768.0,91767.0,0.00248696]
[1765199940717,0.06177293,91768.0,91767.0,0.00248696]
[1765199941030,0.06078293,91768.0,91767.0,0.22043022]
[1765199942295,0.27872382,91768.0,91767.0,0.00248696]
[1765199942481,0.06078293,91768.0,91767.0,0.00248696]
[1765199943502,0.06078293,91768.0,91767.0,0.22043022]
[1765199943697,0.06078293,91768.0,91767.0,0.00248696]
[1765199943856,0.27872382,91768.0,91767.0,0.00248696]
[1765199944246,0.06078293,91768.0,91767.0,0.00248696]
[1765199945562,0.06078293,91768.0,91767.0,0.22043022]
[1765199945708,0.06078293,91768.0,91767.0,0.00248696]
[1765199945923,0.27971382,91768.0,91767.0,0.00248696]
[1765199946693,0.06177293,91768.0,91767.0,0.00248696]
[1765199947044,0.06177293,91768.0,91767.0,0.22043022]
[1765199947193,0.06177293,91768.0,91767.0,0.00248696]
[1765199948223,0.0719349,91768.0,91767.0,0.00248696]
[1765199948421,0.28987579,91768.0,91767.0,0.00248696]
[1765199948956,0.0719349,91768.0,91767.0,0.22043022]
[1765199949485,0.0719349,91768.0,91767.0,0.00248696]
[1765199950313,0.0719349,91768.0,91767.0,0.22043022]
[1765199950588,0.0719349,91768.0,91767.0,0.00248696]
[1765199951160,0.28987579,91768.0,91767.0,0.00248696]
[1765199954354,0.35239878,91768.0,91767.0,0.00248696]
[1765199954545,0.69759477,91768.0,91767.0,0.00248696]
[1765199955551,1.09759477,91768.0,91767.0,0.00248696]
[1765199957680,1.23536441,91768.0,91767.0,0.00248696]
[1765199957876,1.23536441,91768.0,91729.0,0.01090167]
[1765199957877,0.01090072,91737.0,91734.0,0.01090108]
[1765199958078,0.01090072,91737.0,91734.0,0.00011632]
[1765199958079,0.21801842,91736.0,91734.0,0.00011632]
[1765199958278,0.218018,91736.0,91734.0,0.00011632]
[1765199959410,0.219018,91736.0,91734.0,0.00311632]
[1765199959908,0.220018,91736.0,91734.0,0.00411632]
[1765199960619,0.001,91736.0,91734.0,0.00111632]
[1765199960939,0.21801929,91735.0,91734.0,0.00211632]
[1765199961322,0.21901841,91736.0,91734.0,0.00211632]
[1765199961549,0.05978293,91735.0,91734.0,0.00211632]
[1765199961769,0.05978293,91735.0,91734.0,0.00011632]
[1765199961935,0.001,91735.0,91734.0,0.00211632]
[1765199962142,0.001,91735.0,91734.0,0.00311632]
[1765199963523,0.02319599,91735.0,91734.0,0.00307751]
[1765199963944,0.08297892,91735.0,91734.0,0.00307751]
[1765199964146,0.08197892,91735.0,91734.0,0.00107751]
[1765199964633,0.08597892,91735.0,91734.0,0.00207751]
[1765199964898,0.08297892,91735.0,91734.0,0.00107751]
[1765199965053,0.08697892,91735.0,91734.0,0.00307751]
[1765199965234,0.40997892,91735.0,91734.0,0.00307751]
[1765199966510,0.62799821,91735.0,91734.0,0.00307751]
[1765199967916,0.70065729,91735.0,91734.0,0.00307751]
[1765199968124,1.10065729,91735.0,91734.0,0.00307751]
[1765199968698,1.10065729,91735.0,91719.0,0.02180573]
[1765199968699,0.21805494,91720.0,91719.0,0.02180573]
[1765199968856,0.21805494,91720.0,91692.0,0.01090607]
[1765199968857,0.01090548,91697.0,91692.0,0.01090607]
[1765199969060,0.01090536,91698.0,91693.0,0.01090595]
[1765199969314,0.22901376,91698.0,91693.0,0.22902482]
[1765199969532,0.22901309,91698.0,91696.0,0.00110748]
[1765199969714,0.21811883,91694.0,91692.0,0.00038869]
[1765199970673,0.01090548,91697.0,91693.0,0.27837485]
[1765199970921,0.4,91720.0,91698.0,0.21810659]
[1765199970922,0.323,91701.0,91698.0,0.21810659]
[1765199971142,0.55200625,91701.0,91699.0,0.02181048]
[1765199971348,0.05978293,91700.0,91699.0,0.02181048]
[1765199971483,0.05978293,91700.0,91693.0,0.00161287]
[1765199971484,0.21811677,91694.0,91693.0,0.00161287]
[1765199972057,0.21811677,91694.0,91693.0,0.00461287]
[1765199972296,0.21811677,91694.0,91693.0,0.00161287]
[1765199973388,0.21811915,91693.0,91692.0,0.00038869]
[1765199974746,0.22011915,91693.0,91692.0,0.00238869]
[1765199976319,0.24231514,91693.0,91692.0,0.00238869]
[1765199976742,0.24231514,91693.0,91692.0,0.0036128]
[1765199977478,0.30483813,91693.0,91692.0,0.0036128]
[1765199977866,0.62783813,91693.0,91692.0,0.0036128]
[1765199979136,0.62583813,91693.0,91692.0,0.0016128]
[1765199980262,0.63793003,91693.0,91692.0,0.0016128]
[1765199980490,0.63893003,91693.0,91692.0,0.0026128]
[1765199980694,0.74586694,91693.0,91692.0,0.0026128]
[1765199980930,0.64692799,91693.0,91692.0,0.0026128]
[1765199981251,0.64692799,91693.0,91676.0,4.004e-05]
[1765199981252,0.54115722,91677.0,91676.0,4.004e-05]
[1765199981459,0.64354566,91677.0,91676.0,4.004e-05]
[1765199981899,0.23582668,91677.0,91676.0,4.004e-05]
[1765199982524,0.29560961,91677.0,91676.0,4.004e-05]
[1765199982728,0.00038946,91677.0,91676.0,0.21819964]
[1765199982925,0.00038946,91677.0,91676.0,0.37321251]
[1765199983331,0.00038946,91677.0,91676.0,0.37421251]
[1765199983519,0.00338946,91677.0,91676.0,0.37421251]
[1765199983719,0.00038946,91677.0,91676.0,0.37321251]
[1765199984128,0.00338946,91677.0,91676.0,0.37521251]
[1765199986891,0.00338946,91677.0,91676.0,0.37567903]
[1765199987882,0.00338946,91677.0,91676.0,0.28212903]
[1765199988817,0.00338946,91677.0,91676.0,0.00411943]
[1765199989409,0.00338946,91677.0,91676.0,0.28212903]
[1765199990264,0.00338946,91677.0,91676.0,0.37567903]
[1765199990469,0.00338946,91677.0,91676.0,0.28212903]
[1765199990786,0.00338946,91677.0,91676.0,0.22227903]
[1765199991741,0.00338946,91677.0,91676.0,0.28212903]
[1765199993594,0.00338946,91677.0,91676.0,0.37567903]
[1765199994643,0.00338946,91677.0,91676.0,0.3978586]
[1765199995924,0.00338946,91677.0,91676.0,0.37567903]
[1765199996339,0.00338946,91677.0,91676.0,0.3978586]
[1765199996542,0.00338946,91677.0,91676.0,0.7208586]
[1765199996942,0.00038946,91677.0,91676.0,0.7188586]
[1765199997147,0.00238946,91677.0,91676.0,0.7188586]
[1765199997381,0.00338946,91677.0,91676.0,0.82075146]
[1765199997682,0.00138946,91677.0,91676.0,0.82075146]
[1765199998191,0.00438946,91677.0,91676.0,0.82075146]
[1765199998484,0.00338946,91677.0,91676.0,0.77864153]
[1765199998774,0.00438946,91677.0,91676.0,0.78464153]
[1765200000218,0.00438946,91677.0,91676.0,0.4018586]
[1765200000541,0.00438946,91677.0,91676.0,0.37967903]
[1765200000737,0.00438946,91677.0,91676.0,0.22627903]
[1765200001673,0.00338946,91677.0,91676.0,0.22027903]
[1765200001853,0.00338946,91677.0,91676.0,0.37767903]
[1765200001854,0.00438946,91677.0,91676.0,0.37767903]
[1765200002715,0.00138946,91677.0,91676.0,0.37767903]
[1765200003059,0.00338946,91677.0,91676.0,0.38067903]
[1765200005604,0.00338946,91677.0,91676.0,0.7258586]
[1765200005805,0.00224413,91677.0,91676.0,0.7258586]
[1765200008394,0.01012456,91714.0,91692.0,0.2403011]
[1765200008595,0.01012456,91718.0,91692.0,0.34627076]
[1765200008768,0.22893844,91728.0,91692.0,0.34627076]
[1765200008770,0.01012456,91717.0,91716.0,0.21806445]
[1765200009143,0.01012456,91734.0,91730.0,0.21802631]
[1765200009348,0.02102576,91733.0,91730.0,0.01090155]
[1765200009548,0.01012456,91732.0,91730.0,0.01090155]
[1765200009749,0.02102576,91733.0,91730.0,0.01090155]
[1765200009957,0.01012456,91734.0,91731.0,0.22892789]
[1765200010132,0.02102552,91735.0,91732.0,0.01090132]
[1765200010295,0.0109012,91733.0,91730.0,0.001]
[1765200010497,0.0109012,91733.0,91731.0,0.01090144]
[1765200010498,0.003,91733.0,91731.0,0.01090144]
[1765200010903,0.013,91733.0,91731.0,0.01090144]
[1765200011105,0.013,91733.0,91731.0,0.22893024]
[1765200011348,0.0239012,91733.0,91730.0,0.01290155]
[1765200011685,0.25208756,91733.0,91730.0,0.01290155]
[1765200011857,0.22818714,91732.0,91730.0,0.01182455]
[1765200012069,0.01016025,91731.0,91730.0,0.01182455]
[1765200012260,0.2180288,91731.0,91730.0,0.000923]
[1765200012498,0.03105298,91733.0,91725.0,0.22894509]
[1765200012499,0.01090167,91729.0,91725.0,0.01090215]
[1765200012706,0.22893818,91728.0,91723.0,0.01090239]
[1765200013034,0.01090191,91727.0,91724.0,0.01090227]
[1765200013236,0.22893589,91729.0,91725.0,0.01090215]
[1765200013382,0.01090167,91729.0,91727.0,0.21803764]
[1765200013583,0.01090144,91731.0,91727.0,0.22893955]
[1765200014009,0.004,91728.0,91725.0,0.01090215]
[1765200014209,0.22203632,91728.0,91725.0,0.22894463]
[1765200014527,0.00096158,91726.0,91725.0,0.22894463]
[1765200014848,0.00096158,91726.0,91724.0,0.01090227]
[1765200015047,0.22894088,91727.0,91723.0,0.22894997]
[1765200015250,0.001,91727.0,91724.0,0.01090227]
[1765200015446,0.001,91727.0,91725.0,0.21804285]
[1765200015631,0.21802443,91733.0,91730.0,0.21803051]
[1765200015833,0.21802726,91732.0,91730.0,0.01090155]
[1765200016013,0.22892858,91732.0,91729.0,0.01090167]
[1765200016558,0.21802167,91734.0,91730.0,0.01090155]
[1765200016785,0.004,91733.0,91731.0,0.21802802]
[1765200016934,0.004,91733.0,91730.0,0.23193193]
[1765200017120,0.01,91732.0,91731.0,0.2180274]
[1765200017315,0.004,91733.0,91731.0,0.2180274]
[1765200017752,0.22202446,91733.0,91730.0,0.23193179]
[1765200017960,0.23992285,91734.0,91731.0,0.21802865]
[1765200018295,0.003,91732.0,91731.0,0.21802865]
[1765200018861,0.011,91734.0,91731.0,0.21802865]
[1765200018862,0.07068389,91735.0,91731.0,0.01090144]
[1765200019058,0.004,91734.0,91732.0,0.01090132]
[1765200019407,0.004,91734.0,91733.0,0.21802404]
[1765200019585,0.05978293,91735.0,91734.0,0.21802167]
[1765200020096,0.05978293,91735.0,91733.0,0.21802361]
[1765200020302,0.013,91734.0,91733.0,0.21802361]
[1765200020531,0.05978293,91735.0,91734.0,0.21802167]
[1765200020927,0.07278293,91735.0,91734.0,0.22002167]
[1765200021173,0.29080222,91735.0,91734.0,0.002]
[1765200021422,0.29202593,91735.0,91734.0,0.002]
[1765200021643,0.29602593,91735.0,91734.0,0.003]
[1765200022082,0.28302593,91735.0,91734.0,0.001]
[1765200022299,0.00522371,91735.0,91734.0,0.21902167]
[1765200022524,0.00522371,91735.0,91734.0,0.001]
[1765200023146,0.01822371,91735.0,91734.0,0.22102167]
[1765200023711,0.236243,91735.0,91734.0,0.003]
[1765200024101,0.01822371,91735.0,91734.0,0.003]
[1765200024282,0.01822371,91735.0,91734.0,0.22102167]
[1765200024704,0.01822371,91735.0,91734.0,0.003]
[1765200024901,0.01822371,91735.0,91734.0,0.22102167]
[1765200026509,0.01822371,91735.0,91734.0,0.36527167]
[1765200026714,0.01822371,91735.0,91734.0,0.38906411]
[1765200028455,0.01822371,91735.0,91734.0,0.36688454]
[1765200028680,0.01822371,91735.0,91734.0,0.71206411]
[1765200030246,0.0004,91790.0,91789.0,0.21789103]
[1765200030448,0.00078994,91790.0,91789.0,0.21789103]
[1765200031442,0.01178994,91790.0,91789.0,0.21889103]
[1765200032110,0.01178994,91790.0,91789.0,0.001]
[1765200032310,0.03778994,91790.0,91789.0,0.06079]
[1765200032763,0.03778994,91790.0,91789.0,0.003]
[1765200032914,0.03778994,91790.0,91789.0,0.05979]
[1765200033122,0.03778994,91790.0,91789.0,0.003]
[1765200034020,0.03778994,91790.0,91785.0,0.01089502]
[1765200034021,0.03778994,91790.0,91760.0,0.04504]
[1765200034022,0.45323727,91790.0,91760.0,0.04504]
[1765200034226,0.45323727,91790.0,91740.0,0.04603999]
[1765200034227,0.01089846,91756.0,91753.0,1.4019]
[1765200034464,0.01728,91759.0,91757.0,0.21796639]
[1765200035423,0.0001169,91759.0,91757.0,0.21796639]
[1765200035628,0.0001169,91759.0,91758.0,0.07858646]
[1765200035825,0.0001169,91759.0,91758.0,0.05679]
[1765200036036,0.01281582,91759.0,91758.0,0.05679]
[1765200036243,0.01281582,91759.0,91757.0,0.21896639]
[1765200036450,0.0121169,91759.0,91757.0,0.21896639]
[1765200036655,0.0001169,91759.0,91757.0,0.21796639]
[1765200036856,0.0071169,91759.0,91757.0,0.21896639]
[1765200037058,0.0191169,91759.0,91758.0,0.001]
[1765200037917,0.0121169,91759.0,91758.0,0.001]
[1765200038111,0.0001169,91759.0,91757.0,0.21796639]
[1765200038347,0.0071169,91759.0,91758.0,0.001]
[1765200038514,0.0211169,91759.0,91758.0,0.001]
[1765200038713,0.0071169,91759.0,91758.0,0.001]
[1765200039140,0.0211169,91759.0,91758.0,0.003]
[1765200040006,0.0141169,91759.0,91758.0,0.002]
[1765200040416,0.0211169,91759.0,91758.0,0.002]
[1765200041051,0.0141169,91759.0,91758.0,0.002]
[1765200041260,0.0211169,91759.0,91758.0,0.003]
[1765200041839,0.0383969,91759.0,91758.0,0.3870111]
[1765200042043,0.0211169,91759.0,91758.0,0.36521464]
[1765200042241,0.02181582,91759.0,91758.0,0.36682751]
[1765200045086,0.02181582,91759.0,91758.0,0.27936751]
[1765200045883,0.02181582,91759.0,91758.0,0.36203751]
[1765200046269,0.02181582,91759.0,91758.0,0.22257751]
[1765200049650,0.01481582,91759.0,91758.0,0.22157751]
[1765200050128,0.02181582,91759.0,91758.0,0.22257751]
[1765200050506,0.01481582,91759.0,91758.0,0.22157751]
[1765200050708,0.00081582,91759.0,91758.0,0.27606751]
[1765200050910,0.00481582,91759.0,91758.0,0.35973751]
[1765200051229,0.01481582,91759.0,91758.0,0.36073751]
[1765200051816,0.00081582,91759.0,91758.0,0.35873751]
[1765200052224,0.00781582,91759.0,91758.0,0.35973751]
[1765200052400,0.00081582,91759.0,91758.0,0.35873751]
[1765200053250,0.00381582,91759.0,91758.0,0.35873751]
[1765200053606,0.00481582,91759.0,91758.0,0.35973751]
[1765200054020,0.00681582,91759.0,91758.0,0.35973751]
[1765200056679,0.00681582,91759.0,91758.0,0.38191708]
[1765200057023,0.00681582,91759.0,91758.0,0.35973751]
[1765200057240,0.00681582,91759.0,91758.0,0.38191708]
[1765200057441,0.00681582,91759.0,91758.0,0.35973751]
[1765200057650,0.00681582,91759.0,91758.0,0.38191708]
[1765200058282,0.0004,91790.0,91787.0,0.01089478]
[1765200058283,0.01017384,91789.0,91787.0,0.01089478]
[1765200058489,0.0004,91790.0,91789.0,0.31814103]
[1765200058681,0.00078987,91790.0,91789.0,0.31814103]
[1765200059053,0.00078987,91790.0,91789.0,0.40081103]
[1765200059258,0.00078987,91790.0,91789.0,0.4024239]
[1765200060987,0.00378987,91790.0,91789.0,0.4024239]
[1765200061189,0.00378987,91790.0,91789.0,0.2195039]
[1765200061394,0.00378987,91790.0,91786.0,0.21789815]
[1765200061395,0.00578987,91790.0,91786.0,0.21789815]
[1765200061594,0.00578987,91790.0,91780.0,0.2288064]
[1765200061595,0.02219599,91783.0,91780.0,0.22880771]
[1765200061751,0.02219599,91783.0,91778.0,0.01089585]
[1765200061752,0.21790787,91782.0,91779.0,0.22881032]
[1765200061951,0.03309125,91783.0,91782.0,0.21790765]
[1765200061952,0.02219599,91783.0,91782.0,0.21790765]
[1765200062213,0.03236049,91786.0,91784.0,0.22879649]
[1765200062636,0.0210594,91786.0,91782.0,0.22880303]
[1765200062761,0.21790382,91784.0,91781.0,0.0108955]
[1765200062988,0.0101645,91783.0,91781.0,0.22880551]
[1765200063188,0.0101645,91783.0,91782.0,0.21790765]
[1765200063391,0.0101645,91785.0,91783.0,0.21790443]
[1765200063594,0.0101645,91785.0,91784.0,0.2179029]
[1765200063793,0.28857578,91787.0,91784.0,0.2179029]
[1765200063794,0.0111645,91786.0,91784.0,0.2179029]
[1765200064006,0.0111645,91786.0,91783.0,0.22879969]
[1765200064007,0.0111645,91786.0,91785.0,0.25842052]
[1765200064219,0.01802987,91790.0,91789.0,0.21789103]
[1765200064422,0.00078987,91790.0,91789.0,0.26788103]
[1765200064632,0.00169222,91790.0,91789.0,0.26788103]
[1765200064848,0.23047554,91790.0,91785.0,0.01089502]
[1765200065051,0.001,91786.0,91785.0,0.22879083]
[1765200065274,0.00078595,91786.0,91785.0,0.22879083]
[1765200066239,0.01089502,91785.0,91782.0,0.21790737]
[1765200066664,0.01089478,91787.0,91784.0,0.01089514]
[1765200066824,0.01089478,91787.0,91784.0,0.22879779]
[1765200067156,0.001,91786.0,91784.0,0.22879779]
[1765200067291,0.2287912,91787.0,91785.0,0.001]
[1765200067493,0.2287912,91787.0,91784.0,0.22879779]
[1765200067700,0.001,91785.0,91784.0,0.22879779]
[1765200067945,0.001,91785.0,91784.0,0.22979779]
[1765200068154,0.001,91785.0,91784.0,0.22879779]
[1765200069017,0.0108949,91786.0,91781.0,0.22880537]
[1765200069210,0.01089538,91782.0,91778.0,0.2288121]
[1765200069630,0.22879282,91787.0,91782.0,0.01089538]
[1765200069779,0.01089502,91785.0,91776.0,0.01089609]
[1765200069982,0.01189502,91785.0,91784.0,0.001]
[1765200070188,0.01089561,91780.0,91776.0,0.01089609]
[1765200070396,0.01089573,91779.0,91776.0,0.01089609]
[1765200070597,0.24010277,91783.0,91759.0,0.02179622]
[1765200070598,0.01089621,91775.0,91766.0,0.01089728]
[1765200070959,0.01089621,91775.0,91771.0,0.22883044]
[1765200071181,0.01089621,91775.0,91773.0,0.21792882]
[1765200071590,0.25101613,91776.0,91773.0,0.21792888]
[1765200071994,0.0004367,91774.0,91773.0,0.21792888]
[1765200073201,0.0004367,91774.0,91770.0,0.21793594]
[1765200073202,0.0014367,91774.0,91770.0,0.21793594]
[1765200073378,0.22982297,91774.0,91773.0,0.001]
[1765200074231,0.001,91774.0,91773.0,0.001]
[1765200074669,0.001,91774.0,91773.0,0.36552192]
[1765200074873,0.001,91774.0,91773.0,0.34372902]
[1765200075094,0.01017905,91786.0,91785.0,0.21790052]
[1765200075319,0.01017905,91786.0,91785.0,0.30704052]
[1765200075517,0.00078987,91790.0,91789.0,0.21789103]
[1765200075719,0.00078987,91790.0,91788.0,0.21789293]
[1765200075928,0.01096892,91790.0,91788.0,0.21789293]
[1765200076128,0.00078987,91790.0,91788.0,0.21789293]
[1765200076586,0.00078987,91790.0,91789.0,0.21789103]
[1765200076803,0.01096892,91790.0,91789.0,0.21889103]
[1765200077019,0.01196892,91790.0,91789.0,0.21789103]
[1765200077250,0.01197066,91790.0,91789.0,0.21789103]
[1765200077476,0.01197066,91790.0,91788.0,0.001]
[1765200077697,0.01197066,91790.0,91788.0,0.21789122]
[1765200077923,0.01197066,91790.0,91789.0,0.21789103]
[1765200078171,0.00178987,91790.0,91789.0,0.21789103]
[1765200078393,0.00078987,91790.0,91789.0,0.21789103]
[1765200078620,0.00078987,91790.0,91789.0,0.26734103]
[1765200078621,0.00178987,91790.0,91789.0,0.26734103]
[1765200079104,0.00269222,91790.0,91789.0,0.34269103]
[1765200079555,0.00169222,91790.0,91789.0,0.26834103]
[1765200079770,0.00269222,91790.0,91789.0,0.26734103]
[1765200080177,0.00269222,91790.0,91789.0,0.26834103]
[1765200081363,0.00269222,91790.0,91789.0,0.21889103]
[1765200082243,0.00269222,91790.0,91789.0,0.34369103]
[1765200082479,0.00269222,91790.0,91789.0,0.3453039]
[1765200082690,0.00269222,91790.0,91789.0,0.36748347]
[1765200082957,0.00269222,91790.0,91789.0,0.3453039]
[1765200083130,0.00269222,91790.0,91789.0,0.36748347]
[1765200083412,0.00269222,91790.0,91789.0,0.36648347]
[1765200083707,0.00269222,91790.0,91789.0,0.36748347]
[1765200083893,0.00269222,91790.0,91789.0,0.36648347]
[1765200084113,0.00169222,91790.0,91789.0,0.36648347]
[1765200084309,0.00169222,91790.0,91789.0,0.36748347]
[1765200084469,0.00269222,91790.0,91789.0,0.36748347]
[1765200084854,0.00169222,91790.0,91789.0,0.36748347]
[1765200085057,0.00169222,91790.0,91789.0,0.3453039]
[1765200085428,0.00269222,91790.0,91789.0,0.2205039]
[1765200085909,0.00169222,91790.0,91789.0,0.2205039]
[1765200086072,0.00169222,91790.0,91789.0,0.2195039]
[1765200086073,0.00269222,91790.0,91789.0,0.2195039]
[1765200086274,0.00269222,91790.0,91789.0,0.2205039]
[1765200087317,0.00169222,91790.0,91789.0,0.2205039]
[1765200087546,0.00169222,91790.0,91789.0,0.001]
[1765200087723,0.00269222,91790.0,91789.0,0.21789103]
[1765200088126,0.00169222,91790.0,91789.0,0.21789103]
[1765200088331,0.00269222,91790.0,91789.0,0.21789103]
[1765200088529,0.00269222,91790.0,91789.0,0.26734103]
[1765200088730,0.00269222,91790.0,91789.0,0.34269103]
[1765200088943,0.00269222,91790.0,91789.0,0.34369103]
[1765200089731,0.00269222,91790.0,91789.0,0.34269103]
[1765200090172,0.00269222,91790.0,91789.0,0.34369103]
[1765200090385,0.00169222,91790.0,91789.0,0.34369103]
[1765200090581,0.00269222,91790.0,91789.0,0.3453039]
[1765200091455,0.00169222,91790.0,91789.0,0.3453039]
[1765200091861,0.00269222,91790.0,91789.0,0.3443039]
[1765200092059,0.00269222,91790.0,91789.0,0.3453039]
[1765200093310,0.00169222,91790.0,91789.0,0.3453039]
[1765200093710,0.00269222,91790.0,91789.0,0.3453039]
[1765200097574,0.00269222,91790.0,91789.0,0.36748347]
[1765200098100,0.00269222,91790.0,91789.0,0.69048347]
[1765200098382,0.00169222,91790.0,91789.0,0.69048347]
[1765200098578,0.00169222,91790.0,91789.0,0.7285467]
[1765200098779,0.00169222,91790.0,91789.0,0.69048347]
[1765200099123,0.02106758,91837.0,91829.0,0.21779612]
[1765200099124,0.01724,91833.0,91829.0,0.21779612]
[1765200099327,0.00051698,91830.0,91829.0,0.21779612]
[1765200099677,0.00051698,91830.0,91829.0,0.25748612]
[1765200099678,0.00168059,91830.0,91829.0,0.25748612]
[1765200100066,0.00168059,91830.0,91829.0,0.30693612]
[1765200100400,0.00168059,91830.0,91829.0,0.30669612]
[1765200101208,0.00268059,91830.0,91829.0,0.30669612]
[1765200101413,0.00268059,91830.0,91829.0,0.38365899]
[1765200101611,0.00168059,91830.0,91829.0,0.38365899]
[1765200101815,0.00168059,91830.0,91829.0,0.38465899]
[1765200101991,0.00268059,91830.0,91829.0,0.38365899]
[1765200102395,0.00268059,91830.0,91829.0,0.38465899]
[1765200102602,0.00268059,91830.0,91829.0,0.40583856]
[1765200103032,0.00268059,91830.0,91829.0,0.40683856]
[1765200103252,0.00168059,91830.0,91829.0,0.38465899]
[1765200103455,0.00168059,91830.0,91829.0,0.40683856]
[1765200103615,0.00268059,91830.0,91829.0,0.40683856]
[1765200103814,0.00268059,91830.0,91829.0,0.22016899]
[1765200104041,0.00268059,91830.0,91829.0,0.001]
[1765200104374,0.02487658,91830.0,91829.0,0.001]
[1765200104788,0.00268059,91830.0,91829.0,0.001]
[1765200105148,0.00168059,91830.0,91829.0,0.001]
[1765200105353,0.01257027,91830.0,91827.0,0.01089004]
[1765200105575,0.00051698,91830.0,91829.0,0.001]
[1765200106437,0.00151698,91830.0,91829.0,0.001]
[1765200106858,0.00268059,91830.0,91829.0,0.001]
[1765200107905,0.00168059,91830.0,91829.0,0.001]
[1765200108113,0.00268059,91830.0,91829.0,0.001]
[1765200108333,0.00268059,91830.0,91828.0,0.21779815]
[1765200108535,0.00151698,91830.0,91829.0,0.001]
[1765200108913,0.00151698,91830.0,91829.0,0.21879612]
[1765200109318,0.00051698,91830.0,91829.0,0.21879612]
[1765200109530,0.00051698,91830.0,91829.0,0.39050899]
[1765200109958,0.00051698,91830.0,91829.0,0.41268856]
[1765200110176,0.00151698,91830.0,91829.0,0.41268856]
[1765200110596,0.00051698,91830.0,91829.0,0.41268856]
[1765200111039,0.00151698,91830.0,91829.0,0.39050899]
[1765200111251,0.00151698,91830.0,91829.0,0.38950899]
[1765200111655,0.00151698,91830.0,91829.0,0.39050899]
[1765200112726,0.00151698,91830.0,91829.0,0.31062899]
[1765200112947,0.00151698,91830.0,91829.0,0.22040899]
[1765200113263,0.00151698,91830.0,91829.0,0.001]
[1765200115855,0.06129991,91830.0,91829.0,0.001]
[1765200116051,0.00151698,91830.0,91829.0,0.001]
[1765200116254,0.00268059,91830.0,91829.0,0.001]
[1765200119033,0.22047433,91830.0,91829.0,0.001]
[1765200119902,0.00268059,91830.0,91829.0,0.001]
[1765200120106,0.00268059,91830.0,91829.0,0.21879612]
[1765200120522,0.00268059,91830.0,91829.0,0.26778612]
[1765200120728,0.00268059,91830.0,91829.0,0.34184612]
[1765200120965,0.00268059,91830.0,91829.0,0.37734612]
[1765200121202,0.00268059,91830.0,91829.0,0.001]
[1765200121203,0.23771433,91830.0,91829.0,0.001]
[1765200121469,0.33259474,91830.0,91829.0,0.001]
[1765200121751,0.34512665,91830.0,91829.0,0.001]
[1765200121940,0.33259474,91830.0,91829.0,0.001]
[1765200122352,0.25093337,91809.0,91806.0,0.01089253]
[1765200122521,0.05978293,91807.0,91806.0,0.22874307]
[1765200122730,0.06027759,91807.0,91806.0,0.22874307]
[1765200123901,0.07117,91807.0,91804.0,0.01089277]
[1765200124106,0.01089312,91801.0,91796.0,0.01089372]
[1765200124304,0.2178746,91796.0,91791.0,0.01089431]
[1765200124511,0.2178746,91796.0,91788.0,0.21840781]
[1765200124512,0.21788419,91792.0,91789.0,0.01089455]
[1765200124765,0.01089395,91794.0,91790.0,0.22878265]
[1765200124943,0.05978293,91793.0,91790.0,0.22878265]
[1765200125147,0.070677,91793.0,91790.0,0.22878265]
[1765200125356,0.070677,91793.0,91788.0,0.01141062]
[1765200125357,0.21788865,91790.0,91788.0,0.00051595]
[1765200125536,0.22878081,91791.0,91788.0,0.00051595]
[1765200125773,0.21788965,91790.0,91788.0,0.00051595]
[1765200126512,0.01724,91789.0,91788.0,0.00051595]
[1765200126863,0.01724,91789.0,91788.0,0.00151595]
[1765200128034,0.05989982,91793.0,91788.0,0.00051595]
[1765200128238,0.01089419,91792.0,91789.0,0.01089455]
[1765200128453,0.25097702,91791.0,91788.0,0.00151595]
[1765200128754,0.0330903,91791.0,91788.0,0.23030352]
[1765200128971,0.01089431,91791.0,91788.0,0.01341062]
[1765200129196,0.21788919,91790.0,91788.0,0.00051595]
[1765200129612,0.22877869,91792.0,91789.0,0.002]
[1765200129765,0.21788865,91790.0,91789.0,0.001]
[1765200130419,0.24008464,91790.0,91789.0,0.001]
[1765200130831,0.01089514,91784.0,91780.0,0.01089561]
[1765200131033,0.22880053,91783.0,91780.0,0.01089561]
[1765200131249,0.2179089,91782.0,91779.0,0.22880848]
[1765200131420,0.22880053,91783.0,91779.0,0.22880848]
[1765200131637,0.01089455,91789.0,91785.0,0.01089502]
[1765200131836,0.02219599,91790.0,91787.0,0.01089478]
[1765200132041,0.22878077,91791.0,91788.0,0.21789324]
[1765200132659,0.21788865,91790.0,91787.0,0.01089478]
[1765200132892,0.01089467,91788.0,91785.0,0.01089502]
[1765200133149,0.22878308,91790.0,91787.0,0.001]
[1765200133417,0.21800038,91793.0,91792.0,0.21788391]
[1765200133418,0.00011689,91793.0,91792.0,0.21788391]
[1765200133635,0.00011689,91793.0,91791.0,0.21788628]
[1765200135018,0.21788921,91790.0,91788.0,0.001]
[1765200135217,0.21788991,91790.0,91785.0,0.00161287]
[1765200135565,0.21788991,91790.0,91760.0,0.4531576]
[1765200135566,0.01089621,91775.0,91772.0,0.01089656]
[1765200135715,0.01089621,91775.0,91767.0,0.01089716]
[1765200135716,0.21793139,91772.0,91767.0,0.22883838]
[1765200135918,0.01089645,91773.0,91769.0,0.2288341]
[1765200135919,0.07067938,91773.0,91769.0,0.2288341]
[1765200136119,0.07067938,91773.0,91770.0,0.22883223]
[1765200136321,0.07067938,91773.0,91768.0,0.01089704]
[1765200136322,0.01089656,91772.0,91768.0,0.22883747]
[1765200136485,0.01089656,91772.0,91769.0,0.22883458]
[1765200136685,0.05978293,91773.0,91770.0,0.22883183]
[1765200137099,0.28860899,91773.0,91770.0,0.0108968]
[1765200137432,0.07067938,91773.0,91770.0,0.0108968]
[1765200137639,0.07067938,91773.0,91769.0,0.22883458]
[1765200137640,0.28860879,91773.0,91769.0,0.22883399]
[1765200137838,0.28860879,91773.0,91770.0,0.001]
[1765200138169,0.21793248,91772.0,91770.0,0.001]
[1765200139196,0.22882904,91772.0,91768.0,0.22883769]
[1765200140008,0.22883071,91771.0,91768.0,0.01089704]
[1765200140616,0.01089656,91772.0,91770.0,0.001]
[1765200140854,0.01089656,91772.0,91769.0,0.22883497]
[1765200141035,0.01089668,91771.0,91768.0,0.001]
[1765200141237,0.22883319,91770.0,91768.0,0.001]